fUSD/lending_fUSD_20251001
["ID","MTS","AMOUNT","RATE_DAILY","PERIOD"]
[388642890,1759295439873,-55480.04157608,0.0001739,2]
[388642891,1759295439883,-339.41183,0.0001739,2]
[388642892,1759295439892,-255.44081836,0.0001739,2]
[388642893,1759295439902,-150.02226193,0.00017401,2]
[388642894,1759295439912,-201.44527264,0.00017409,2]
[388642895,1759295439921,-249.56421407,0.00017411,2]
[388642896,1759295439931,-201.44527264,0.00017412,2]
[388642897,1759295439941,-150.02226193,0.00017419,2]
[388642898,1759295439950,-249.56421407,0.00017419,2]
[388642899,1759295439960,-255.44081836,0.00017426,2]
[388642900,1759295439969,-249.56421407,0.00017426,2]
[388642901,1759295439979,-151.0,0.00017432,2]
[388642903,1759295439988,-2243.7553256,0.00017435,2]
[388642904,1759295439998,-8460.1698709,0.00017435,2]
[388642906,1759295440007,-255.44081836,0.00017445,2]
[388642907,1759295440016,-150.02226193,0.00017447,2]
[388642909,1759295440026,-152.70329608,0.00017448,2]
[388642911,1759295440035,-11280.37486885,0.00017448,2]
[388642912,1759295440045,-17185.98528402,0.00017452,2]
[388642914,1759295440056,-919.69574993,0.00017452,2]
[388642916,1759295440068,-694.42339999,0.00017452,2]
[388642919,1759295440089,-889.88053578,0.00017452,2]
[388642921,1759295440100,-614.1800125,0.00017452,2]
[388642923,1759295440111,-1232.19,0.00017452,2]
[388642924,1759295440122,-1145.19927197,0.00017452,2]
[388642927,1759295440133,-313.50100007,0.00017452,2]
[388642929,1759295440154,-421.48223619,0.00017452,2]
[388642931,1759295440165,-497.84863745,0.00017452,2]
[388642933,1759295440182,-963.19752,0.00017452,2]
[388642935,1759295440194,-334.84426764,0.00017452,2]
[388642936,1759295440204,-14401.3401658,0.00017452,2]
[388642937,1759295440246,-87639.10737046,0.00017452,2]
[388642938,1759295440258,-1608.39633385,0.00017453,2]
[388642939,1759295440267,-28257.95690833,0.00017454,2]
[388642940,1759295440281,-19508.13862875,0.00017456,2]
[388642941,1759295440294,-18564.62343333,0.00017456,2]
[388642942,1759295440305,-2114.48594429,0.00017456,2]
[388642943,1759295440317,-148813.21740451,0.00017456,2]
[388642944,1759295440327,-316.04066707,0.00017459,2]
[388642945,1759295440336,-3352.52722078,0.00017459,2]
[388642946,1759295440346,-28257.95690833,0.0001746,2]
[388642947,1759295440356,-2904.31630588,0.0001746,2]
[388642948,1759295440365,-1608.39633385,0.00017461,2]
[388642949,1759295440374,-127252.8754518,0.00017462,2]
[388642950,1759295440383,-19180.86320913,0.00017464,2]
[388642951,1759295440393,-323.51752785,0.00017464,2]
[388642952,1759295440402,-1409.71165593,0.00017464,2]
[388642953,1759295440412,-255.44081836,0.00017465,2]
[388642954,1759295440422,-13064.32612541,0.00017467,2]
[388642955,1759295440431,-201.44527264,0.0001747,2]
[388642956,1759295440441,-316.04066707,0.00017471,2]
[388642957,1759295440451,-316.04066707,0.00017471,2]
[388642958,1759295440460,-168.20989324,0.00017472,2]
[388642959,1759295440472,-4795.21580231,0.00017479,2]
[388642960,1759295440483,-9598.14786704,0.00017482,2]
[388642961,1759295440493,-19180.86320913,0.00017485,2]
[388642962,1759295440502,-201.44527264,0.00017485,2]
[388642963,1759295440511,-67179.00171995,0.00017486,2]
[388642975,1759295443429,-9935.65723145,0.00017486,2]
[388642976,1759295443444,-895.49449622,0.00017486,2]
[388642979,1759295443470,-978.47116259,0.00017486,2]
[388642981,1759295443481,-479.8475744,0.00017486,2]
[388642983,1759295443492,-826.50423127,0.00017486,2]
[388642985,1759295443503,-920.84787516,0.00017486,2]
[388642986,1759295443514,-930.36,0.00017486,2]
[388642987,1759295443525,-1073.5,0.00017486,2]
[388642988,1759295443536,-772.30519032,0.00017486,2]
[388642989,1759295443547,-1200.69662182,0.00017486,2]
[388642990,1759295443563,-1266.64474171,0.00017486,2]
[388642991,1759295443573,-849.29920251,0.00017486,2]
[388642992,1759295443585,-1400.00681571,0.00017486,2]
[388642993,1759295443604,-447.44826,0.00017486,2]
[388642994,1759295443617,-1942.80503725,0.00017486,2]
[388642995,1759295443628,-1171.52925698,0.00017486,2]
[388642996,1759295443658,-34982.45603446,0.00017486,2]
[388642997,1759295443667,-169492.32678213,0.00017486,2]
[388642998,1759295443676,-323.51752785,0.00017486,2]
[388642999,1759295443687,-2904.31630588,0.00017487,2]
[388643000,1759295443696,-337.20440416,0.00017487,2]
[388643001,1759295443705,-9598.14786704,0.00017489,2]
[388643002,1759295443716,-250.0,0.00017489,2]
[388643003,1759295443726,-323.51752785,0.0001749,2]
[388643004,1759295443736,-295.70595104,0.0001749,2]
[388643005,1759295443746,-295.70595104,0.00017492,2]
[388643006,1759295443756,-13064.32612541,0.00017492,2]
[388643007,1759295443765,-1230.15857825,0.00017494,2]
[388643008,1759295443774,-238.87577567,0.00017495,2]
[388643009,1759295443783,-1608.39633385,0.00017495,2]
[388643010,1759295443792,-1608.39633385,0.00017496,2]
[388643011,1759295443802,-1409.71165593,0.00017496,2]
[388643012,1759295443811,-150.02226193,0.00017496,2]
[388643013,1759295443820,-249.56421407,0.00017496,2]
[388643014,1759295443830,-238.87577567,0.00017497,2]
[388643015,1759295443839,-249.56421407,0.00017497,2]
[388643016,1759295443849,-19508.13862875,0.00017498,2]
[388643017,1759295443859,-19508.13862875,0.00017498,2]
[388643018,1759295443868,-255.44081836,0.00017499,2]
[388643019,1759295443878,-1230.15857825,0.000175,2]
[388643020,1759295443887,-224.95,0.00017533,2]
[388643021,1759295443896,-751.53,0.00017587,2]
[388643022,1759295443905,-274.64804595,0.00017587,2]
[388643023,1759295443915,-300.0,0.00017587,2]
[388643024,1759295443924,-500.0,0.00017587,2]
[388643025,1759295443933,-500.0,0.00017587,2]
[388643026,1759295443942,-500.0,0.00017587,2]
[388643027,1759295443951,-500.0,0.00017587,2]
[388643028,1759295443960,-500.0,0.00017587,2]
[388643029,1759295443970,-500.0,0.00017587,2]
[388643030,1759295443979,-500.0,0.00017587,2]
[388643031,1759295443989,-500.0,0.00017587,2]
[388643032,1759295444000,-500.0,0.00017587,2]
[388643033,1759295444009,-500.0,0.00017587,2]
[388643034,1759295444018,-500.0,0.00017587,2]
[388643035,1759295444027,-500.0,0.00017587,2]
[388643036,1759295444036,-500.0,0.00017587,2]
[388643037,1759295444046,-500.0,0.00017587,2]
[388643038,1759295444055,-500.0,0.00017587,2]
[388643039,1759295444065,-500.0,0.00017587,2]
[388643040,1759295444074,-500.0,0.00017587,2]
[388643041,1759295444083,-500.0,0.00017587,2]
[388643042,1759295444093,-500.0,0.00017587,2]
[388643043,1759295444102,-500.0,0.00017587,2]
[388643044,1759295444111,-500.0,0.00017587,2]
[388643045,1759295444121,-500.0,0.00017587,2]
[388643046,1759295444130,-500.0,0.00017587,2]
[388643047,1759295444140,-500.0,0.00017587,2]
[388643048,1759295444149,-500.0,0.00017587,2]
[388643049,1759295444158,-500.0,0.00017587,2]
[388643050,1759295444168,-500.0,0.00017587,2]
[388643051,1759295444186,-500.0,0.00017587,2]
[388643052,1759295444195,-500.0,0.00017587,2]
[388643053,1759295444204,-500.0,0.00017587,2]
[388643054,1759295444557,-500.0,0.00017587,2]
[388643055,1759295444566,-500.0,0.00017587,2]
[388643056,1759295444575,-500.0,0.00017587,2]
[388643057,1759295444584,-500.0,0.00017587,2]
[388643058,1759295444593,-500.0,0.00017587,2]
[388643059,1759295444602,-500.0,0.00017587,2]
[388643060,1759295444611,-500.0,0.00017587,2]
[388643061,1759295444620,-500.0,0.00017587,2]
[388643062,1759295444630,-500.0,0.00017587,2]
[388643063,1759295444639,-500.0,0.00017587,2]
[388643064,1759295444648,-500.0,0.00017587,2]
[388643065,1759295444657,-500.0,0.00017587,2]
[388643066,1759295444666,-500.0,0.00017587,2]
[388643067,1759295444675,-500.0,0.00017587,2]
[388643068,1759295444685,-500.0,0.00017587,2]
[388643069,1759295444694,-500.0,0.00017587,2]
[388643070,1759295444703,-500.0,0.00017587,2]
[388643071,1759295444712,-670.58624095,0.00017587,2]
[388643072,1759295444721,-500.0,0.00017587,2]
[388643073,1759295444730,-257.91778498,0.00017587,2]
[388643074,1759295444739,-500.0,0.00017587,2]
[388643075,1759295444748,-500.0,0.00017587,2]
[388643076,1759295444757,-500.0,0.00017587,2]
[388643077,1759295444767,-500.0,0.00017587,2]
[388643078,1759295444776,-151.0,0.00017587,2]
[388643079,1759295444787,-151.22422958,0.00017587,2]
[388643080,1759295444796,-8882.6885148,0.00017587,2]
[388643081,1759295444806,-322.6107,0.00017587,2]
[388643082,1759295444815,-167.75,0.000176,2]
[388643083,1759295444826,-473.55,0.000176,2]
[388643084,1759295444835,-339.41183,0.0001764,2]
[388643085,1759295444845,-9211.34798985,0.00017642,2]
[388643086,1759295444856,-7908.76848447,0.00017697,2]
[388643087,1759295444865,-1612.81,0.00017753,2]
[388643088,1759295444876,-473.63,0.00017753,2]
[388643089,1759295444886,-473.63,0.00017753,2]
[388643090,1759295444896,-175.56,0.000178,2]
[388643091,1759295444906,-1424.0,0.000178,2]
[388643092,1759295444915,-751.53,0.00017861,2]
[388643093,1759295444925,-522.37229982,0.0001789,2]
[388643094,1759295444935,-339.41183,0.0001789,2]
[388643095,1759295444945,-1000.0,0.000179,2]
[388643096,1759295444956,-171.22,0.00017901,2]
[388643097,1759295444969,-700.0,0.00017913,2]
[388643098,1759295444978,-178.25167263,0.00017919,2]
[388643099,1759295444990,-277.51307112,0.00017979,2]
[388643100,1759295445000,-25052.1888307,0.00017982,2]
[388643101,1759295445010,-303.25,0.00018,2]
[388643102,1759295445020,-1099.45,0.00018,2]
[388643103,1759295445030,-349.54,0.00018,2]
[388643104,1759295445039,-6570.78887394,0.00018,2]
[388643105,1759295445051,-225.0,0.00018054,2]
[388643106,1759295445063,-171.94,0.00018055,2]
[388643107,1759295445073,-500.0,0.00018082,2]
[388643108,1759295445084,-525.0,0.00018082,2]
[388643109,1759295445095,-150.77430653,0.00018082,2]
[388643110,1759295445105,-150.0,0.00018082,2]
[388643111,1759295445115,-151.66,0.00018082,2]
[388643112,1759295445125,-150.0,0.00018082,2]
[388643113,1759295445136,-353.65,0.00018082,2]
[388643114,1759295445145,-824.14,0.00018082,2]
[388643115,1759295445154,-751.53,0.00018135,2]
[388643116,1759295445163,-152.912115,0.00018135,2]
[388643117,1759295445173,-339.41183,0.0001814,2]
[388643118,1759295445184,-500.0,0.00018164,2]
[388643119,1759295445194,-168.73,0.00018171,2]
[388643120,1759295445203,-150.0,0.000182,2]
[388643121,1759295445212,-797.92,0.00018246,2]
[388643122,1759295445222,-412.31,0.00018246,2]
[388643123,1759295445231,-166.0,0.0001827,2]
[388643124,1759295445241,-289.0,0.00018321,2]
[388643125,1759295445250,-500.0,0.00018356,2]
[388643127,1759295445259,-525.0,0.00018356,2]
[388643129,1759295445268,-224.95,0.00018367,2]
[388643131,1759295445277,-339.41184,0.0001839,2]
[388643132,1759295445287,-751.53,0.00018409,2]
[388643134,1759295445296,-197.25,0.0001843,2]
[388643136,1759295445306,-473.18,0.0001843,2]
[388643138,1759295445315,-155.0,0.00018498,2]
[388643140,1759295445325,-151.0,0.00018499,2]
[388643141,1759295445335,-8527.68788866,0.000185,2]
[388643142,1759295445344,-337.20440415,0.00018575,2]
[388643143,1759295445353,-155.0,0.00018599,2]
[388643144,1759295445362,-151.0,0.00018599,2]
[388643145,1759295445371,-151.490858,0.00018599,2]
[388643146,1759295445380,-151.0,0.00018599,2]
[388643147,1759295445389,-151.0,0.00018599,2]
[388643148,1759295445399,-151.0,0.00018599,2]
[388643149,1759295445407,-151.0,0.00018599,2]
[388643150,1759295445416,-151.937438,0.00018599,2]
[388643151,1759295445425,-560.99559982,0.00018599,2]
[388643152,1759295445434,-228.388731,0.000186,2]
[388643153,1759295445443,-170.96,0.00018614,2]
[388643154,1759295445452,-500.0,0.0001863,2]
[388643155,1759295445462,-525.0,0.0001863,2]
[388643156,1759295445471,-370.35923647,0.0001863,2]
[388643157,1759295445480,-751.53,0.00018683,2]
[388643158,1759295445490,-25052.1888307,0.00018691,2]
[388643159,1759295445500,-500.0,0.00018699,2]
[388643160,1759295445511,-500.0,0.00018699,2]
[388643161,1759295445520,-500.0,0.00018699,2]
[388643162,1759295445530,-500.0,0.00018699,2]
[388643163,1759295445539,-500.0,0.00018699,2]
[388643164,1759295445548,-500.0,0.00018699,2]
[388643165,1759295445558,-500.0,0.00018699,2]
[388643166,1759295445568,-500.0,0.00018699,2]
[388643167,1759295445577,-500.0,0.00018699,2]
[388643168,1759295445586,-500.0,0.00018699,2]
[388643169,1759295445595,-500.0,0.00018699,2]
[388643170,1759295445604,-194.93781178,0.00018699,2]
[388643171,1759295445614,-151.0,0.00018699,2]
[388643172,1759295445623,-151.0,0.00018699,2]
[388643173,1759295445632,-151.0,0.00018699,2]
[388643174,1759295445641,-151.0,0.00018699,2]
[388643175,1759295445650,-151.0,0.00018699,2]
[388643176,1759295445659,-151.0,0.00018699,2]
[388643177,1759295445669,-151.0,0.00018699,2]
[388643178,1759295445678,-154.096707,0.00018699,2]
[388643179,1759295445688,-473.63,0.00018712,2]
[388643180,1759295445699,-250.0,0.00018734,2]
[388643181,1759295445708,-195.0,0.00018735,2]
[388643182,1759295445717,-250.0,0.00018735,2]
[388643183,1759295445727,-506.16050926,0.00018746,2]
[388643184,1759295445736,-151.0,0.00018764,2]
[388643185,1759295445745,-151.0,0.00018764,2]
[388643186,1759295445755,-7972.54074,0.00018764,2]
[388643187,1759295445764,-437.986,0.00018764,2]
[388643188,1759295445773,-151.0,0.00018764,2]
[388643189,1759295445783,-151.0,0.00018764,2]
[388643190,1759295445792,-437.986,0.00018764,2]
[388643191,1759295445801,-7972.54074,0.00018764,2]
[388643192,1759295445811,-151.0,0.00018764,2]
[388643193,1759295445820,-437.986,0.00018764,2]
[388643194,1759295445830,-151.0,0.00018764,2]
[388643195,1759295445839,-7972.54074,0.00018764,2]
[388643196,1759295445848,-151.0,0.00018764,2]
[388643197,1759295445857,-437.986,0.00018764,2]
[388643198,1759295445866,-482.968385,0.00018764,2]
[388643199,1759295445877,-7972.54074,0.00018764,2]
[388643200,1759295445887,-482.968385,0.00018764,2]
[388643201,1759295445897,-151.0,0.00018764,2]
[388643202,1759295445906,-151.0,0.00018764,2]
[388643203,1759295445916,-151.0,0.00018764,2]
[388643204,1759295445927,-151.0,0.00018764,2]
[388643205,1759295445936,-151.0,0.00018764,2]
[388643206,1759295445946,-482.968385,0.00018764,2]
[388643207,1759295445955,-151.0,0.00018764,2]
[388643208,1759295445964,-482.968385,0.00018764,2]
[388643209,1759295445973,-151.0,0.00018764,2]
[388643211,1759295445982,-180.423705,0.00018764,2]
[388643212,1759295445991,-290.772476,0.00018764,2]
[388643213,1759295446000,-151.0,0.00018764,2]
[388643214,1759295446009,-180.423705,0.00018764,2]
[388643215,1759295446018,-180.423705,0.00018764,2]
[388643216,1759295446027,-151.0,0.00018764,2]
[388643217,1759295446036,-180.423705,0.00018764,2]
[388643218,1759295446046,-151.0,0.00018764,2]
[388643219,1759295446055,-151.0,0.00018764,2]
[388643220,1759295446064,-151.0,0.00018764,2]
[388643221,1759295446074,-151.0,0.00018764,2]
[388643222,1759295446084,-151.0,0.00018764,2]
[388643223,1759295446096,-151.0,0.00018764,2]
[388643224,1759295446107,-167.289413,0.00018764,2]
[388643225,1759295446117,-151.0,0.00018764,2]
[388643226,1759295446127,-151.0,0.00018764,2]
[388643227,1759295446136,-151.0,0.00018764,2]
[388643228,1759295446145,-151.0,0.00018764,2]
[388643229,1759295446154,-269.151137,0.00018764,2]
[388643230,1759295446163,-432.169124,0.00018764,2]
[388643231,1759295446173,-151.0,0.00018764,2]
[388643232,1759295446186,-269.151137,0.00018764,2]
[388643233,1759295446195,-269.151137,0.00018764,2]
[388643234,1759295446204,-432.169124,0.00018764,2]
[388643235,1759295446213,-269.151137,0.00018764,2]
[388643236,1759295446224,-151.0,0.00018764,2]
[388643237,1759295446234,-432.169124,0.00018764,2]
[388643238,1759295446243,-432.169124,0.00018764,2]
[388643239,1759295446254,-273.483036,0.00018764,2]
[388643240,1759295446263,-273.483036,0.00018764,2]
[388643241,1759295446272,-273.483036,0.00018764,2]
[388643242,1759295446283,-273.483036,0.00018764,2]
[388643243,1759295446292,-160.630057,0.00018764,2]
[388643244,1759295446301,-160.630057,0.00018764,2]
[388643245,1759295446311,-151.0,0.00018764,2]
[388643246,1759295446320,-645.325344,0.00018764,2]
[388643247,1759295446329,-160.630057,0.00018764,2]
[388643248,1759295446338,-645.325344,0.00018764,2]
[388643249,1759295446347,-160.630057,0.00018764,2]
[388643250,1759295446356,-645.325344,0.00018764,2]
[388643251,1759295446366,-645.325344,0.00018764,2]
[388643252,1759295446375,-153.690555,0.00018764,2]
[388643253,1759295446384,-151.0,0.00018764,2]
[388643254,1759295446394,-151.0,0.00018764,2]
[388643255,1759295446403,-725.95623,0.00018764,2]
[388643256,1759295446412,-151.0,0.00018764,2]
[388643257,1759295446421,-151.0,0.00018764,2]
[388643258,1759295446430,-166.229844,0.00018764,2]
[388643259,1759295446439,-151.0,0.00018764,2]
[388643260,1759295446448,-725.95623,0.00018764,2]
[388643261,1759295446458,-151.0,0.00018764,2]
[388643262,1759295446468,-151.0,0.00018764,2]
[388643263,1759295446477,-174.085354,0.00018764,2]
[388643264,1759295446486,-725.95623,0.00018764,2]
[388643265,1759295446495,-725.95623,0.00018764,2]
[388643266,1759295446504,-151.0,0.00018764,2]
[388643267,1759295446514,-197.089753,0.00018764,2]
[388643268,1759295446523,-151.0,0.00018764,2]
[388643269,1759295446533,-151.0,0.00018764,2]
[388643270,1759295446542,-197.089753,0.00018764,2]
[388643271,1759295446551,-151.0,0.00018764,2]
[388643272,1759295446562,-151.0,0.00018764,2]
[388643273,1759295446571,-197.089753,0.00018764,2]
[388643274,1759295446580,-151.0,0.00018764,2]
[388643275,1759295446590,-218.83581171,0.00018764,2]
[388643276,1759295446600,-151.0,0.00018764,2]
[388643277,1759295446609,-368.288981,0.00018764,2]
[388643278,1759295446618,-197.089753,0.00018764,2]
[388643279,1759295446629,-368.288981,0.00018764,2]
[388643280,1759295446639,-151.0,0.00018764,2]
[388643281,1759295446649,-368.288981,0.00018764,2]
[388643282,1759295446658,-503.101759,0.00018764,2]
[388643283,1759295446667,-151.0,0.00018764,2]
[388643284,1759295446677,-368.288981,0.00018764,2]
[388643285,1759295446687,-503.101759,0.00018764,2]
[388643286,1759295446696,-304.0,0.00018772,2]
[388643287,1759295446706,-281.66166427,0.00018772,2]
[388643288,1759295446715,-304.0,0.00018772,2]
[388643289,1759295446724,-151.0,0.00018788,2]
[388643290,1759295446734,-151.0,0.00018788,2]
[388643291,1759295446743,-151.0,0.00018788,2]
[388643292,1759295446752,-151.0,0.00018788,2]
[388643293,1759295446762,-151.0,0.00018788,2]
[388643294,1759295446771,-151.0,0.00018788,2]
[388643295,1759295446780,-152.645607,0.00018788,2]
[388643296,1759295446789,-156.824274,0.00018788,2]
[388643297,1759295446799,-301.816705,0.00018788,2]
[388643298,1759295446808,-159.341951,0.00018788,2]
[388643299,1759295446817,-180.27619,0.00018788,2]
[388643300,1759295446826,-159.341951,0.00018788,2]
[388643301,1759295446836,-301.816705,0.00018788,2]
[388643302,1759295446846,-180.27619,0.00018788,2]
[388643303,1759295446855,-301.816705,0.00018788,2]
[388643304,1759295446865,-159.341951,0.00018788,2]
[388643305,1759295446875,-180.27619,0.00018788,2]
[388643306,1759295446884,-301.816705,0.00018788,2]
[388643307,1759295446893,-159.341951,0.00018788,2]
[388643308,1759295446903,-151.0,0.00018788,2]
[388643309,1759295446912,-151.0,0.00018788,2]
[388643310,1759295446921,-180.27619,0.00018788,2]
[388643311,1759295446931,-151.0,0.00018788,2]
[388643312,1759295446940,-151.0,0.00018788,2]
[388643313,1759295446949,-151.0,0.00018788,2]
[388643314,1759295446958,-153.196276,0.00018788,2]
[388643315,1759295446968,-151.0,0.00018788,2]
[388643316,1759295446977,-151.0,0.00018788,2]
[388643317,1759295446987,-151.0,0.00018788,2]
[388643318,1759295446996,-152.556253,0.00018788,2]
[388643319,1759295447006,-408.558778,0.00018788,2]
[388643320,1759295447015,-408.558778,0.00018788,2]
[388643321,1759295447025,-151.0,0.00018788,2]
[388643322,1759295447034,-408.558778,0.00018788,2]
[388643323,1759295447044,-151.0,0.00018788,2]
[388643324,1759295447053,-151.0,0.00018788,2]
[388643325,1759295447063,-408.558778,0.00018788,2]
[388643326,1759295447072,-151.0,0.00018788,2]
[388643327,1759295447081,-151.0,0.00018788,2]
[388643328,1759295447090,-220.958793,0.00018788,2]
[388643329,1759295447100,-151.0,0.00018788,2]
[388643330,1759295447109,-151.0,0.00018788,2]
[388643331,1759295447119,-151.0,0.00018788,2]
[388643332,1759295447128,-151.0,0.00018788,2]
[388643333,1759295447138,-151.0,0.00018788,2]
[388643334,1759295447147,-806.34732,0.00018788,2]
[388643335,1759295447156,-806.34732,0.00018788,2]
[388643336,1759295447166,-202.183503,0.00018788,2]
[388643337,1759295447179,-806.34732,0.00018788,2]
[388643338,1759295447188,-151.0,0.00018788,2]
[388643339,1759295447197,-806.34732,0.00018788,2]
[388643340,1759295447207,-168.085575,0.00018788,2]
[388643341,1759295447217,-168.085575,0.00018788,2]
[388643342,1759295447227,-168.085575,0.00018788,2]
[388643343,1759295447236,-151.0,0.00018788,2]
[388643344,1759295447247,-168.085575,0.00018788,2]
[388643345,1759295447256,-151.0,0.00018788,2]
[388643346,1759295447265,-151.0,0.00018788,2]
[388643347,1759295447275,-151.0,0.00018788,2]
[388643348,1759295447284,-183.098406,0.00018788,2]
[388643349,1759295447294,-151.0,0.00018788,2]
[388643350,1759295447303,-156.367075,0.00018788,2]
[388643351,1759295447312,-183.098406,0.00018788,2]
[388643352,1759295447322,-183.098406,0.00018788,2]
[388643353,1759295447331,-183.098406,0.00018788,2]
[388643354,1759295447340,-151.0,0.00018788,2]
[388643355,1759295447349,-305.215515,0.00018788,2]
[388643356,1759295447359,-305.215515,0.00018788,2]
[388643357,1759295447367,-305.215515,0.00018788,2]
[388643358,1759295447376,-151.0,0.00018788,2]
[388643359,1759295447385,-305.215515,0.00018788,2]
[388643360,1759295447395,-151.0,0.00018788,2]
[388643361,1759295447405,-151.0,0.00018788,2]
[388643362,1759295447414,-151.0,0.00018788,2]
[388643363,1759295447423,-1982.715247,0.00018788,2]
[388643364,1759295447431,-1982.715247,0.00018788,2]
[388643365,1759295447441,-1982.715247,0.00018788,2]
[388643366,1759295447451,-1982.715247,0.00018788,2]
[388643367,1759295447459,-373.30691,0.00018788,2]
[388643368,1759295447468,-373.30691,0.00018788,2]
[388643369,1759295447478,-373.30691,0.00018788,2]
[388643370,1759295447487,-373.30691,0.00018788,2]
[388643371,1759295447496,-151.0,0.00018788,2]
[388643372,1759295447505,-153.868614,0.00018788,2]
[388643373,1759295447514,-151.0,0.00018788,2]
[388643374,1759295447523,-151.0,0.00018788,2]
[388643375,1759295447532,-151.0,0.00018788,2]
[388643376,1759295447541,-151.0,0.00018788,2]
[388643377,1759295447551,-151.0,0.00018788,2]
[388643378,1759295447560,-151.0,0.00018788,2]
[388643379,1759295447569,-151.0,0.00018788,2]
[388643380,1759295447578,-151.0,0.00018788,2]
[388643381,1759295447587,-151.0,0.00018788,2]
[388643382,1759295447596,-151.0,0.00018788,2]
[388643383,1759295447605,-151.0,0.00018788,2]
[388643384,1759295447615,-151.0,0.00018788,2]
[388643385,1759295447624,-221.669413,0.00018788,2]
[388643386,1759295447633,-151.0,0.00018788,2]
[388643387,1759295447642,-151.0,0.00018788,2]
[388643388,1759295447651,-151.825194,0.00018788,2]
[388643389,1759295447667,-1788.837918,0.00018788,2]
[388643390,1759295447679,-333.186593,0.00018788,2]
[388643391,1759295447689,-1788.837918,0.00018788,2]
[388643392,1759295447698,-151.0,0.00018788,2]
[388643393,1759295447707,-206.254363,0.00018788,2]
[388643394,1759295447717,-72.35344114,0.00018788,2]
[388643395,1759295448291,-503.101759,0.00018764,2]
[388643396,1759295448303,-195.975461,0.00018764,2]
[388643397,1759295448312,-503.101759,0.00018764,2]
[388643398,1759295448322,-260.83315186,0.00018788,2]
[388643399,1759295448332,-151.0,0.00018788,2]
[388643400,1759295448341,-1788.837918,0.00018788,2]
[388643401,1759295448350,-151.0,0.00018788,2]
[388643402,1759295448360,-206.254363,0.00018788,2]
[388643403,1759295448369,-333.186593,0.00018788,2]
[388643404,1759295448378,-227.259557,0.00018788,2]
[388643405,1759295448388,-151.0,0.00018788,2]
[388643406,1759295448397,-1788.837918,0.00018788,2]
[388643407,1759295448407,-151.0,0.00018788,2]
[388643408,1759295448416,-333.186593,0.00018788,2]
[388643409,1759295448426,-206.254363,0.00018788,2]
[388643410,1759295448436,-151.0,0.00018788,2]
[388643411,1759295448445,-206.254363,0.00018788,2]
[388643412,1759295448455,-252.956273,0.00018788,2]
[388643413,1759295448464,-252.956273,0.00018788,2]
[388643414,1759295448766,-151.0,0.00018788,2]
[388643415,1759295448776,-252.956273,0.00018788,2]
[388643416,1759295448786,-151.0,0.00018788,2]
[388643417,1759295448796,-252.956273,0.00018788,2]
[388643418,1759295448806,-151.0,0.00018788,2]
[388643419,1759295448816,-158.323343,0.00018788,2]
[388643420,1759295448826,-154.162767,0.00018788,2]
[388643421,1759295448835,-167.587712,0.00018788,2]
[388643422,1759295448845,-167.587712,0.00018788,2]
[388643423,1759295448853,-151.0,0.00018788,2]
[388643424,1759295448862,-167.587712,0.00018788,2]
[388643425,1759295448871,-153.69502,0.00018788,2]
[388643426,1759295448880,-151.0,0.00018788,2]
[388643427,1759295448889,-167.587712,0.00018788,2]
[388643428,1759295448898,-151.0,0.00018788,2]
[388643429,1759295448907,-151.0,0.00018788,2]